bitfinex/quotes_SOLUSD_20251126
["timestamp","ask_amount","ask_price","bid_price","bid_amount"]
[1764166590253,40.25654675,136.98,136.97,0.2]
[1764166590449,43.49654675,136.98,136.97,0.2]
[1764166590651,44.10654675,136.98,136.97,0.2]
[1764166591243,43.49654675,136.98,136.97,0.2]
[1764166592056,44.10654675,136.98,136.97,0.2]
[1764166597257,25.11880892,136.94,136.93,0.2]
[1764166597448,36.05404937,136.94,136.93,0.2]
[1764166597863,36.05404937,136.94,136.93,0.92]
[1764166599144,43.3565176,136.94,136.93,0.2]
[1764166599866,43.49867917,136.94,136.93,0.2]
[1764166600547,44.10867917,136.94,136.93,0.2]
[1764166601663,44.10867917,136.94,136.9,0.2]
[1764166601664,25.54529363,136.91,136.9,0.2]
[1764166601852,36.19621094,136.91,136.9,0.2]
[1764166602946,36.80621094,136.91,136.9,0.2]
[1764166603161,44.1102793,136.91,136.9,0.2]
[1764166606058,43.5002793,136.91,136.9,0.2]
[1764166606371,26.76493059,136.91,136.9,0.89]
[1764166606778,27.04925373,136.91,136.9,0.89]
[1764166607151,27.1914153,136.91,136.9,0.2]
[1764166607567,27.1914153,136.91,136.9,1e-08]
[1764166607752,29.80141529,136.91,136.9,1e-08]
[1764166607958,32.73128161,136.91,136.9,1e-08]
[1764166608166,30.73128162,136.91,136.9,1e-08]
[1764166608361,32.73128161,136.91,136.9,1e-08]
[1764166608552,29.80141529,136.91,136.9,1e-08]
[1764166609274,27.8014153,136.91,136.9,1e-08]
[1764166609469,23.9514153,136.91,136.9,1e-08]
[1764166609669,27.1914153,136.91,136.9,1e-08]
[1764166610963,27.8014153,136.91,136.9,1e-08]
[1764166611668,27.1914153,136.91,136.9,1e-08]
[1764166614562,27.8014153,136.91,136.9,1e-08]
[1764166614868,27.1914153,136.91,136.9,1e-08]
[1764166615858,27.8014153,136.91,136.9,1e-08]
[1764166616079,24.00410445,136.88,136.87,0.89]
[1764166616260,27.24410445,136.88,136.87,0.2]
[1764166616669,22.949047,136.88,136.87,0.2]
[1764166616977,22.949047,136.88,136.87,0.89]
[1764166617986,30.25471619,136.88,136.87,0.89]
[1764166618778,6.35585986,136.88,136.87,0.89]
[1764166618962,31.47466878,136.88,136.87,0.89]
[1764166620584,8.39338046,136.93,136.87,0.89]
[1764166620757,8.39338046,136.93,136.87,10.62206282]
[1764166620758,6.35585986,136.92,136.87,10.62206282]
[1764166620963,3.11585986,136.91,136.87,7.50620296]
[1764166621166,6.35585986,136.92,136.87,7.50620296]
[1764166621481,3.24,136.92,136.88,3.11585986]
[1764166621688,3.24,136.92,136.87,28.88757023]
[1764166621988,3.24,136.92,136.88,3.11585986]
[1764166622579,16.308864,136.9,136.88,3.11585986]
[1764166623071,19.548864,136.9,136.88,3.11585986]
[1764166623983,3.24,136.9,136.89,10.42099537]
[1764166624596,23.53646132,136.99,136.89,28.68383414]
[1764166624597,3.11585986,136.96,136.89,28.68383414]
[1764166624890,3.24,136.95,136.93,3.11585986]
[1764166625203,3.24,136.94,136.92,3.11585986]
[1764166625498,6.35585986,136.93,136.89,10.42099537]
[1764166625915,3.24,136.93,136.9,3.11585986]
[1764166626971,3.24,136.93,136.89,3.11585986]
[1764166628112,3.24,136.93,136.9,7.30460189]
[1764166630479,14.36890202,136.93,136.89,7.30493868]
[1764166630799,7.06585986,136.93,136.89,7.30493868]
[1764166631001,6.35585986,136.93,136.89,7.30493868]
[1764166631306,7.06585986,136.93,136.89,7.30493868]
[1764166631675,14.36898127,136.93,136.89,7.30493868]
[1764166632598,3.95,136.93,136.89,7.30493868]
[1764166632794,3.24,136.93,136.89,7.30493868]
[1764166633123,3.24,136.93,136.88,10.42133845]
[1764166633124,8.80994492,136.92,136.88,10.42133845]
[1764166633322,9.51994492,136.92,136.88,10.42133845]
[1764166633606,9.51994492,136.92,136.88,7.30547859]
[1764166633607,16.308864,136.91,136.88,7.30547859]
[1764166633815,31.47466878,136.9,136.87,0.2]
[1764166634801,16.308864,136.9,136.88,3.11585986]
[1764166635013,3.24,136.89,136.88,3.11585986]
[1764166635705,16.308864,136.9,136.88,3.11585986]
[1764166635908,3.24,136.89,136.88,3.11585986]
[1764166636833,3.24,136.89,136.88,10.42152905]
[1764166638518,3.24,136.89,136.87,10.62188973]
[1764166638827,3.24,136.89,136.87,7.50602987]
[1764166639111,3.24,136.89,136.87,10.62188973]
[1764166639809,3.24,136.88,136.87,7.50602987]
[1764166640312,16.308864,136.9,136.87,3.31585986]
[1764166640611,25.11880892,136.92,136.89,3.11585986]
[1764166640817,3.24,136.9,136.89,3.11585986]
[1764166641117,3.24,136.9,136.89,10.42099537]
[1764166642810,3.24,136.9,136.89,7.30513551]
[1764166642985,3.24,136.9,136.88,7.30545784]
[1764166648930,3.93,136.9,136.88,7.30545784]
[1764166649229,3.24,136.9,136.87,62.1]
[1764166649521,25.11880892,136.88,136.87,0.2]
[1764166649824,29.98351655,136.88,136.87,0.2]
[1764166649996,16.308864,136.88,136.87,0.2]
[1764166650198,3.24,136.88,136.87,12.37091059]
[1764166650422,8.95210649,136.91,136.87,12.37091059]
[1764166650423,3.24,136.89,136.87,12.37091059]
[1764166651199,3.24,136.89,136.87,7.50620296]
[1764166651507,3.24,136.89,136.87,12.37091059]
[1764166652806,3.93,136.89,136.87,7.50620296]
[1764166653426,0.69,136.88,136.87,0.2]
[1764166653626,16.998864,136.88,136.87,0.2]
[1764166654199,16.308864,136.88,136.87,0.2]
[1764166655330,3.93,136.89,136.87,0.2]
[1764166655639,0.14216157,136.93,136.88,4.86470763]
[1764166655829,3.24,136.92,136.87,25.77163136]
[1764166656018,3.24,136.92,136.88,4.86470763]
[1764166656210,3.93,136.92,136.88,4.86470763]
[1764166656404,3.93,136.92,136.89,7.30513551]
[1764166658724,3.93,136.92,136.88,12.17037682]
[1764166659214,3.93,136.92,136.88,30.43454981]
[1764166660026,3.24,136.91,136.88,30.43454981]
[1764166664017,3.24,136.91,136.88,25.56984218]
[1764166664232,0.66,136.9,136.88,7.30566919]
[1764166664411,9.46994492,136.9,136.87,0.2]
[1764166664618,14.33465255,136.9,136.87,0.2]
[1764166664916,0.66,136.89,136.87,0.2]
[1764166665122,3.24,136.88,136.87,0.2]
[1764166665526,3.9,136.88,136.87,0.2]
[1764166666232,3.24,136.88,136.87,0.2]
[1764166668725,20.208864,136.88,136.87,0.2]
[1764166668924,29.01880892,136.88,136.87,0.2]
[1764166669236,33.88351655,136.88,136.87,0.2]
[1764166669442,29.01880892,136.88,136.87,0.2]
[1764166672929,19.548864,136.89,136.87,5.06470763]
[1764166673136,19.548864,136.89,136.87,12.37091059]
[1764166673343,20.208864,136.89,136.87,12.37091059]
[1764166673842,20.208864,136.89,136.87,7.50620296]
[1764166677347,0.66,136.89,136.87,7.50620296]
[1764166677545,3.24,136.88,136.87,7.50620296]
[1764166681048,0.66,136.89,136.87,7.50620296]
[1764166681249,3.24,136.88,136.87,7.50620296]
[1764166681752,25.11880892,136.91,136.87,12.37091059]
[1764166681965,16.308864,136.89,136.88,12.17037682]
[1764166682426,3.9,136.91,136.88,30.43454981]
[1764166682756,8.95210649,136.93,136.9,4.86470763]
[1764166682757,0.66,136.93,136.9,4.86470763]
[1764166682932,3.24,136.92,136.9,4.86470763]
[1764166684258,3.24,136.92,136.91,7.30406836]
[1764166684259,16.308864,136.92,136.91,7.30406836]
[1764166684443,19.548864,136.92,136.91,7.30406836]
[1764166687764,19.548864,136.92,136.9,12.16907619]
[1764166687946,20.258864,136.92,136.9,12.16907619]
[1764166692367,19.548864,136.92,136.9,12.16907619]
[1764166693645,20.258864,136.92,136.9,7.30436856]
[1764166693867,20.258864,136.92,136.9,12.16907619]
[1764166695666,19.548864,136.92,136.9,12.16907619]
[1764166695963,0.67,136.91,136.9,12.16907619]
[1764166696463,19.548864,136.92,136.9,12.16907619]
[1764166696773,20.218864,136.92,136.9,12.16907619]
[1764166697076,0.67,136.91,136.88,12.17037682]
[1764166697244,3.24,136.9,136.88,12.17037682]
[1764166697848,3.24,136.9,136.88,30.43454981]
[1764166698049,3.24,136.9,136.89,4.86470763]
[1764166698364,3.24,136.9,136.88,30.43454981]
[1764166699479,3.24,136.9,136.89,12.16984314]
[1764166700374,3.24,136.9,136.89,7.30513551]
[1764166700375,3.91,136.9,136.89,7.30513551]
[1764166700563,3.91,136.9,136.88,7.30547408]
[1764166700782,0.67,136.89,136.88,7.30547408]
[1764166700980,0.67,136.89,136.88,12.17018171]
[1764166701553,3.91,136.9,136.88,12.17018171]
[1764166701885,0.67,136.91,136.88,30.4343547]
[1764166702085,3.24,136.9,136.89,4.86470763]
[1764166702586,3.91,136.9,136.88,30.4343547]
[1764166703286,3.91,136.9,136.88,12.17018171]
[1764166705671,3.91,136.9,136.88,30.4343547]
[1764166705871,3.91,136.9,136.89,4.86470763]
[1764166706086,3.24,136.9,136.89,4.86470763]
[1764166706382,0.67,136.91,136.89,4.86470763]
[1764166706584,3.91,136.91,136.9,4.86470763]
[1764166706903,3.91,136.91,136.89,4.86470763]
[1764166707073,0.67,136.9,136.88,25.56964707]
[1764166707279,0.67,136.9,136.88,7.30547408]
[1764166707764,0.67,136.9,136.87,0.2]
[1764166708180,0.67,136.9,136.87,7.50608759]
[1764166708586,0.67,136.9,136.87,0.2]
[1764166710881,0.67,136.9,136.87,7.50612728]
[1764166711387,16.308864,136.88,136.87,0.2]
[1764166711687,19.548864,136.88,136.87,0.2]
[1764166711923,32.42733971,136.88,136.87,0.2]
[1764166712057,32.42733971,136.88,136.86,0.2]
[1764166712058,19.70739479,136.87,136.86,0.2]
[1764166712389,4.06853079,136.87,136.86,0.2]
[1764166713466,0.67,136.9,136.86,7.50651711]
[1764166713669,0.67,136.89,136.86,7.50651711]
[1764166714387,3.78420765,136.89,136.86,7.50651711]
[1764166714561,3.78420765,136.89,136.86,0.2]
[1764166714765,0.67,136.88,136.86,0.2]
[1764166714985,3.24,136.87,136.86,0.2]
[1764166715692,3.91,136.87,136.86,0.2]
[1764166716586,19.548864,136.87,136.86,0.2]
[1764166716798,20.218864,136.87,136.86,0.2]
[1764166729191,19.548864,136.87,136.86,0.2]
[1764166729391,16.308864,136.88,136.86,10.62094446]
[1764166732717,16.308864,136.88,136.86,7.50673681]
[1764166733317,3.24,136.89,136.87,3.32420765]
[1764166733613,3.24,136.89,136.88,3.11420765]
[1764166734317,3.24,136.89,136.87,3.11420765]
[1764166734616,3.24,136.89,136.88,7.30566919]
[1764166735203,16.308864,136.9,136.88,7.30566919]
[1764166735405,20.218864,136.9,136.88,7.30566919]
[1764166736012,0.67,136.89,136.87,7.30594776]
[1764166737528,16.308864,136.9,136.88,3.32420765]
[1764166737695,3.24,136.89,136.88,3.32420765]
[1764166738120,3.24,136.89,136.88,3.11420765]
[1764166738714,3.24,136.89,136.88,10.41987684]
[1764166739122,3.24,136.89,136.88,7.30566919]
[1764166740608,19.548864,136.9,136.88,25.56984218]
[1764166740927,20.218864,136.9,136.88,25.56984218]
[1764166741392,19.548864,136.9,136.88,25.56984218]
[1764166741598,19.548864,136.9,136.88,28.68404983]
[1764166742315,20.218864,136.9,136.88,25.56984218]
[1764166743230,19.548864,136.9,136.88,25.56984218]
[1764166743414,20.218864,136.9,136.88,25.56984218]
[1764166744214,16.978864,136.9,136.88,25.56984218]
[1764166744418,3.24,136.89,136.88,25.56984218]
[1764166744599,3.24,136.89,136.88,28.68404983]
[1764166747539,3.24,136.89,136.88,18.26417299]
[1764166748313,3.96,136.94,136.88,21.58838064]
[1764166748512,3.96,136.94,136.92,3.11420765]
[1764166749033,0.72,136.93,136.91,3.11420765]
[1764166749216,0.72,136.93,136.9,3.11420765]
[1764166749620,0.72,136.93,136.91,7.30406836]
[1764166750019,0.72,136.93,136.91,25.56423927]
[1764166750335,0.72,136.93,136.91,28.67844692]
[1764166752935,3.24,136.96,136.92,3.32420765]
[1764166753137,3.96,136.96,136.94,3.11420765]
[1764166753340,3.24,136.96,136.94,3.11420765]
[1764166753635,0.72,136.95,136.93,3.11420765]
[1764166754614,0.72,136.95,136.94,7.30246823]
[1764166757528,0.72,136.95,136.91,36.73034183]
[1764166757529,0.72,136.95,136.92,3.11420765]
[1764166759036,25.40313206,136.98,136.93,10.62720918]
[1764166759235,3.95,136.99,136.97,3.11420765]
[1764166759423,3.95,136.99,136.98,3.11420765]
[1764166759617,3.24,136.99,136.97,3.11420765]
[1764166759819,3.95,136.99,136.97,3.11420765]
[1764166760414,3.95,136.99,136.95,0.21]
[1764166760617,3.24,136.99,136.97,3.11420765]
[1764166760832,0.71,136.98,136.93,84.96569427]
[1764166761031,0.71,136.98,136.97,7.3008688]
[1764166761227,17.018864,137.0,136.97,10.41507645]
[1764166761430,3.24,137.0,136.98,3.11420765]
[1764166761732,3.24,137.0,136.99,3.11420765]
[1764166762416,3.95,137.0,136.99,3.11420765]
[1764166762711,3.95,137.0,136.98,3.11420765]
[1764166762929,3.24,137.0,136.98,3.11420765]
[1764166763129,3.24,137.0,136.99,7.2998029]
[1764166763532,3.95,137.0,136.99,7.2998029]
[1764166763730,0.71,137.0,136.99,7.2998029]
[1764166767143,0.71,137.0,136.99,10.41401055]
[1764166767342,3.24,137.01,136.99,7.2998029]
[1764166767541,3.95,137.01,136.99,10.41401055]
[1764166768644,3.95,137.01,136.99,4.85638194]
[1764166769632,3.95,137.01,136.98,18.25024946]
[1764166769947,3.95,137.01,136.99,4.85638194]
[1764166770325,3.24,137.01,137.0,4.85638194]
[1764166770544,3.24,137.01,137.0,12.15565201]
[1764166770949,3.24,137.01,137.0,7.29927007]
[1764166771134,3.24,137.01,137.0,12.15565201]
[1764166771735,3.95,137.01,137.0,7.29927007]
[1764166772741,3.95,137.01,136.98,25.55058527]
[1764166772934,0.71,137.0,136.98,25.55058527]
[1764166776133,0.71,137.0,136.98,7.30033581]
[1764166777233,3.95,137.0,136.98,7.30033581]
[1764166777435,0.71,136.99,136.98,7.30033581]
[1764166779144,0.71,137.0,136.98,12.15671775]
[1764166779471,3.95,137.0,136.98,12.15671775]
[1764166780357,0.71,136.99,136.98,12.15671775]
[1764166780653,0.1,137.04,136.99,16.518864]
[1764166780834,0.1,137.04,137.03,4.85638194]
[1764166781229,0.1,137.04,137.03,12.15405398]
[1764166781430,0.1,137.04,137.03,15.07899273]
[1764166784253,0.76,137.04,137.03,15.07899273]
[1764166784443,0.76,137.04,137.03,7.29767204]
[1764166784754,0.76,137.04,137.03,12.15405398]
[1764166784954,0.1,137.04,137.03,12.15405398]
[1764166785853,0.1,137.04,137.03,12.36405398]
[1764166786055,0.76,137.04,137.02,0.72982046]
[1764166786259,8.80994492,137.03,136.99,15.08123054]
[1764166786457,8.80994492,137.03,136.99,12.15586396]
[1764166786642,0.66,137.02,137.0,4.85638194]
[1764166786979,0.66,137.02,136.99,12.15586396]
[1764166787162,0.66,137.02,136.99,7.29948202]
[1764166789356,5.51638194,137.02,136.98,18.25030308]
[1764166789760,0.66,137.01,136.98,18.25030308]
[1764166795245,5.51638194,137.01,136.97,7.3008688]
[1764166795447,4.85638194,137.0,136.97,7.3008688]
[1764166795645,0.66,137.0,136.97,25.5530408]
[1764166795843,0.66,136.99,136.97,7.3008688]
[1764166797264,0.66,136.99,136.96,25.55427394]
[1764166798344,5.51638194,136.99,136.96,25.55427394]
[1764166798539,27.11880891,136.96,136.84,0.41]
[1764166798738,27.11880891,136.96,136.86,7.71640048]
[1764166798739,16.308864,136.92,136.86,7.71640048]
[1764166798963,4.85638194,136.89,136.86,7.71640048]
[1764166799168,4.85638194,136.9,136.86,7.71640048]
[1764166799365,4.85638194,136.9,136.86,25.9832425]
[1764166799865,4.85638194,136.9,136.87,0.21]
[1764166800442,4.85638194,136.89,136.86,7.50640048]
[1764166800796,4.85638194,136.87,136.86,0.2]
[1764166801137,8.75638194,136.87,136.86,0.2]
[1764166801358,17.56632686,136.87,136.86,0.2]
[1764166801555,17.85065,136.87,136.86,0.2]
[1764166802024,0.66,136.87,136.86,0.2]
[1764166802142,8.75638194,136.87,136.86,0.2]
[1764166803042,8.75638194,136.87,136.86,7.50673681]
[1764166803244,8.75638194,136.87,136.86,0.2]
[1764166804168,5.51638194,136.87,136.86,0.2]
[1764166804341,8.75638194,136.87,136.86,0.2]
[1764166805166,34.159514,136.87,136.86,0.2]
[1764166807809,16.308864,136.85,136.84,0.2]
[1764166807966,8.80994492,136.84,136.77,0.2]
[1764166808162,4.85638194,136.82,136.78,7.31066026]
[1764166808467,4.85638194,136.82,136.79,7.51035315]
[1764166808656,0.66,136.82,136.79,7.51035315]
[1764166808854,5.51638194,136.82,136.79,7.51035315]
[1764166809091,4.85638194,136.81,136.79,7.51035315]
[1764166812684,0.66,136.82,136.79,25.78654292]
[1764166812986,5.51638194,136.82,136.79,25.78654292]
[1764166813888,8.09638194,136.84,136.8,5.46638194]
[1764166814075,8.81638194,136.84,136.8,5.46638194]
[1764166814994,8.81638194,136.84,136.8,0.61]
[1764166816287,8.81638194,136.84,136.81,7.3094072]
[1764166816786,8.81638194,136.84,136.81,25.58292521]
[1764166817008,0.72,136.87,136.82,5.46638194]
[1764166817197,3.24,136.86,136.82,5.46638194]
[1764166817485,8.09638194,136.86,136.82,5.46638194]
[1764166817693,8.81638194,136.86,136.82,5.46638194]
[1764166817889,16.308864,136.85,136.82,5.46638194]
[1764166818397,21.16524594,136.85,136.83,7.30833881]
[1764166818695,5.57638194,136.84,136.81,7.3094072]
[1764166818881,3.24,136.83,136.81,7.3094072]
[1764166819880,3.24,136.83,136.81,7.9194072]
[1764166820195,3.24,136.83,136.81,25.58292521]
[1764166821180,3.24,136.83,136.81,31.04930715]
[1764166821502,3.24,136.83,136.81,26.19292521]
[1764166823599,3.24,136.83,136.81,31.04930715]
[1764166824599,3.96,136.83,136.81,25.58292521]
[1764166825102,3.24,136.83,136.81,25.58292521]
[1764166825482,0.72,136.84,136.81,25.58292521]
[1764166825804,3.24,136.83,136.81,30.43930715]
[1764166826104,3.24,136.83,136.81,31.04930715]
[1764166826405,3.24,136.83,136.81,30.43930715]
[1764166826890,0.72,136.84,136.81,30.43930715]
[1764166827205,16.308864,136.84,136.83,4.85638194]
[1764166827389,3.24,136.84,136.83,30.43556778]
[1764166827704,3.24,136.84,136.83,31.04556778]
[1764166828073,3.24,136.84,136.83,30.43556778]
[1764166828503,19.548864,136.85,136.83,30.43556778]
[1764166828775,20.268864,136.85,136.83,30.43556778]
[1764166829409,19.548864,136.85,136.83,30.43556778]
[1764166829610,19.548864,136.85,136.83,31.04556778]
[1764166830109,19.548864,136.85,136.83,30.43556778]
[1764166830688,19.548864,136.85,136.83,28.69458773]
[1764166831090,8.80994492,136.88,136.83,25.57918584]
[1764166831392,3.24,136.87,136.85,28.69084945]
[1764166831795,3.24,136.87,136.85,29.30084945]
[1764166831991,0.72,136.91,136.86,3.72540189]
[1764166832196,0.72,136.91,136.87,3.11540189]
[1764166832197,3.24,136.9,136.87,3.11540189]
[1764166832609,0.72,136.89,136.86,3.11540189]
[1764166832792,3.96,136.89,136.86,3.11540189]
[1764166833491,17.028864,136.88,136.87,7.30620296]
[1764166833825,0.72,136.88,136.87,7.30620296]
[1764166834391,3.24,136.89,136.87,25.57171037]
[1764166834719,3.96,136.89,136.87,25.57171037]
[1764166835088,17.028864,136.91,136.88,3.11540189]
[1764166835286,3.24,136.89,136.88,3.72540189]
[1764166835583,3.24,136.89,136.88,10.42107108]
[1764166839037,3.24,136.89,136.88,7.30566919]
[1764166843615,3.24,136.89,136.88,10.42107108]
[1764166844723,3.24,136.89,136.88,3.11540189]
[1764166847445,3.24,136.89,136.88,10.42107108]
[1764166850042,3.24,136.89,136.87,25.57171037]
[1764166850423,3.24,136.89,136.87,26.18171037]
[1764166851217,25.11880892,136.93,136.87,25.57171037]
[1764166851421,16.308864,136.93,136.91,3.11540189]
[1764166851653,16.988864,136.93,136.92,3.11540189]
[1764166851960,16.988864,136.93,136.91,3.11540189]
[1764166852524,16.308864,136.93,136.91,3.11540189]
[1764166852723,0.68,136.92,136.91,3.11540189]
[1764166853043,0.68,136.92,136.9,3.11540189]
[1764166853427,0.68,136.92,136.9,7.30460189]
[1764166853838,0.68,136.92,136.9,25.56610663]
[1764166855425,3.92,136.92,136.9,25.56610663]
[1764166855842,0.68,136.91,136.9,25.56610663]
[1764166859755,3.24,136.92,136.9,25.56610663]
[1764166859944,3.24,136.92,136.9,28.68150852]
[1764166860459,0.68,136.92,136.9,28.68150852]
[1764166861843,0.68,136.95,136.91,3.72540189]
[1764166862030,3.92,136.96,136.94,3.11540189]
[1764166862233,0.68,136.96,136.95,7.30193501]
[1764166862429,3.24,136.96,136.95,7.30193501]
[1764166862660,3.24,136.96,136.95,10.4173369]
[1764166862855,0.68,136.97,136.95,10.4173369]
[1764166863061,3.92,136.97,136.95,10.4173369]
[1764166863444,0.68,136.96,136.95,7.30193501]
[1764166863642,3.92,136.97,136.95,7.30193501]
[1764166864375,0.2,137.01,136.95,28.67217443]
[1764166864535,3.92,137.0,136.97,3.11540189]
[1764166865674,0.71,136.99,136.97,3.11540189]
[1764166866639,0.71,136.99,136.98,7.30033581]
[1764166866835,3.24,137.0,136.98,7.30033581]
[1764166867058,3.95,137.0,136.98,10.4157377]
[1764166867362,3.24,137.0,136.98,10.4157377]
[1764166867669,0.2,137.01,136.98,10.4157377]
[1764166867670,0.2,137.01,136.99,3.11540189]
[1764166867960,0.91,137.01,136.99,3.11540189]
[1764166868750,0.2,137.01,137.0,10.41467196]
[1764166869248,0.2,137.01,137.0,11.02467196]
[1764166869662,0.2,137.01,137.0,7.29927007]
[1764166869967,0.2,137.01,137.0,10.41467196]
[1764166870760,0.2,137.01,137.0,11.02467196]
[1764166871949,1e-08,137.01,137.0,11.02467196]
[1764166872668,1e-08,137.01,137.0,14.26467196]
[1764166873073,1e-08,137.01,137.0,10.53927007]
[1764166873262,0.71000001,137.01,137.0,7.29927007]
[1764166873672,1e-08,137.01,137.0,7.29927007]
[1764166875275,1e-08,137.01,136.98,25.55117534]
[1764166875584,1e-08,137.01,136.98,26.16117534]
[1764166875875,0.72000001,137.01,136.98,87.45117534]
[1764166877784,0.72000001,137.01,136.98,88.06117534]
[1764166879093,0.72000001,137.01,136.98,87.45117534]
[1764166879278,3.8354019,137.01,136.98,87.45117534]
[1764166879593,3.83540189,137.0,136.98,87.45117534]
[1764166880088,0.72,137.0,136.98,25.55117534]
[1764166880260,3.1154019,137.01,136.98,25.55117534]
[1764166880585,0.72000001,137.01,136.98,25.55117534]
[1764166880760,3.8354019,137.01,136.98,25.55117534]
[1764166881312,0.72000001,137.01,136.98,25.55117534]
[1764166891904,1e-08,137.01,136.99,3.72540189]
[1764166892312,1e-08,137.01,136.98,29.27657723]
[1764166892486,1e-08,137.01,136.99,3.72540189]
[1764166892686,1e-08,137.01,136.99,5.46548908]
[1764166892885,1e-08,137.01,137.0,0.61]
[1764166893209,1e-08,137.01,137.0,7.29927007]
[1764166898609,0.72000001,137.01,137.0,7.29927007]
[1764166899920,1e-08,137.01,137.0,7.29927007]
[1764166904799,0.70000001,137.01,137.0,7.29927007]
[1764166905225,1e-08,137.01,137.0,7.29927007]
[1764166907310,0.70000001,137.01,137.0,7.29927007]
[1764166910432,5.55548909,137.01,137.0,7.29927007]
[1764166910806,0.70000001,137.01,137.0,7.29927007]
[1764166912726,0.70000001,137.01,136.99,25.54931016]
[1764166914654,0.70000001,137.01,136.99,18.24950726]
[1764166916330,1e-08,137.01,136.99,18.24950726]
[1764166916710,1e-08,137.01,136.99,18.85950726]
[1764166917336,1e-08,137.01,137.0,5.46548908]
[1764166918318,1e-08,137.01,137.0,0.61]
[1764166918528,1e-08,137.01,137.0,5.46548908]
[1764166918722,1e-08,137.01,137.0,12.90692072]
[1764166918918,1e-08,137.01,137.0,74.80692072]
[1764166919119,1e-08,137.03,137.01,1.03648471]
[1764166919428,1e-08,137.03,137.02,8.94747111]
[1764166919743,1e-08,137.03,137.02,3.22]
[1764166920237,1e-08,137.03,137.01,4.85548908]
[1764166920415,1e-08,137.03,137.01,5.46548908]
[1764166920617,0.70000001,137.03,137.0,33.62293433]
[1764166921428,0.70000001,137.03,137.0,34.23293433]
[1764166921915,0.70000001,137.03,137.0,28.76744525]
[1764166922118,5.55548909,137.03,137.0,25.54744525]
[1764166922744,0.7,137.02,137.0,18.24817518]
[1764166923127,1e-08,137.03,137.0,18.24817518]
[1764166923128,1e-08,137.03,137.01,4.85548908]
[1764166923443,1e-08,137.03,137.02,4.99765065]
[1764166923643,0.1,137.06,137.03,0.14216157]
[1764166923848,1e-08,137.06,137.05,5.28197379]
[1764166924143,0.1,137.1,137.06,1.03648471]
[1764166924442,0.1,137.1,137.09,4.85548908]
[1764166924654,0.1,137.1,137.08,4.85548908]
[1764166924838,0.8,137.1,137.08,7.29501021]
[1764166927837,5.65548908,137.1,137.08,7.29501021]
[1764166928242,0.67,137.09,137.08,7.29501021]
[1764166929528,0.1,137.1,137.07,18.2377057]
[1764166929732,0.1,137.1,137.08,4.85548908]
[1764166929948,0.1,137.1,137.07,23.70319478]
[1764166930167,0.77,137.1,137.07,23.70319478]
[1764166930333,0.77,137.1,137.07,23.09319478]
[1764166930652,0.77,137.1,137.07,18.2377057]
[1764166931532,0.77,137.1,137.07,25.53324812]
[1764166931732,0.77,137.1,137.07,30.9987372]
[1764166931958,0.1,137.1,137.07,30.9987372]
[1764166932183,0.1,137.1,137.08,5.46548908]
[1764166932663,0.1,137.1,137.09,5.46548908]
[1764166933042,1e-08,137.1,137.09,5.46548908]
[1764166933351,1e-08,137.1,137.09,5.60765065]
[1764166933864,1e-08,137.1,137.09,12.90212873]
[1764166935633,1e-08,137.12,137.11,16.308864]
[1764166935964,1e-08,137.12,137.11,31.81992869]
[1764166936147,1e-08,137.12,137.11,32.42992869]
[1764166937954,1e-08,137.12,137.11,11.26557561]
[1764166938265,1e-08,137.12,137.11,16.12106469]
[1764166941054,1e-08,137.12,137.11,78.02106469]
[1764166944708,1e-08,137.15,137.12,16.73534871]
[1764166944978,1e-08,137.15,137.14,4.99765065]
[1764166945147,0.69,137.2,137.14,5.60765065]
[1764166945469,0.69,137.2,137.17,4.85548908]
[1764166945782,0.69,137.2,137.15,3.22]
[1764166945783,0.69,137.2,137.16,4.85548908]